[Event "ESTCC U65 2018"]
[Site "Walbrzych"]
[Date "2018.04.19"]
[Round "6"]
[White "Meskanen, Vesa"]
[Black "Andersson, Finn"]
[Result "1-0"]
[ECO "E10"]
[WhiteElo "2066"]
[BlackElo "1719"]
[Annotator "NA"]
[PlyCount "99"]
[EventDate "2018.??.??"]
[EventCountry "POL"]
[SourceTitle "playchess.com"]
[Source "ChessBase"]
[SourceQuality "1"]
[WhiteTeam "Finland"]
[BlackTeam "Denmark"]
[WhiteTeamCountry "FIN"]
[BlackTeamCountry "DEN"]
[TimeControl "40/5400+30:1800+30"]

1. d4 {[%emt 0:00:00]} Nf6 {[%emt 0:00:06]} 2. c4 {[%emt 0:00:00]} e6 {[%emt 0:00:04]} 3. Nf3 {[%emt 0:00:00]} c5 {[%emt 0:00:15]} 4. g3 {[%emt 0:00:29]} d5 {[%emt 0:01:43]} 5. cxd5 {[%emt 0:00:27]} exd5 {[%emt 0:01:15]} 6. Bg2 {[%emt 0:00:14] E01: Catalan: Early deviations} b6 {[%emt 0:10:53]} (6... Nc6 7. O-O Be7 8. dxc5 Bxc5 9. a3 a6 10. b4 Ba7 11. Bb2 O-O 12. Nbd2 Re8 13. Nb3 Bg4 14. h3 Bh5 15. g4 Bg6 16. Rc1 Ne4 17. Nbd4 {0-1 (34) Socko,B (2593)-Akobian,V (2647) Riadh 2017}) 7. O-O {[%emt 0:01:40]} Bb7 {[%emt 0:00:10]} 8. Nc3 {[%emt 0:03:54]} Be7 {[%emt 0:04:50]} 9. Be3 {[%emt 0:09:56]} O-O {[%emt 0:00:36]} 10. Rc1 {[%emt 0:02:43]} Nbd7 {[%emt 0:06:38]} 11. h3 {[%emt 0:03:10]} a6 $146 {[%emt 0:10:26]} ({Predecessor:} 11... Rc8 12. Nh4 Ne4 13. Nf5 Ndf6 14. Nxe7+ Qxe7 15. Nxe4 Nxe4 {0-1 (46) Karavaeva,A (1831)-Andreeva,E (1963) Togliatti 2012}) 12. Ne5 {[%emt 0:12:32]} Re8 {[%emt 0:16:42]} 13. Nxd7 {[%emt 0:06:17]} Qxd7 {[%emt 0:00:31]} 14. Na4 {[%emt 0:04:43]} Qb5 {[%emt 0:16:34]} 15. dxc5 {[%emt 0:03:56]} bxc5 {[%emt 0:05:06]} 16. Bxc5 {[%emt 0:04:36]} Bxc5 {[%emt 0:02:48]} 17. Nxc5 {[%emt 0:01:24]} Bc6 {[%emt 0:01:06]} 18. Nd3 {[%emt 0:00:53]} Rad8 {[%emt 0:00:19]} 19. Rc5 {[%emt 0:01:40]} Qb6 {[%emt 0:01:08]} 20. b3 {[%emt 0:06:31]} Ne4 {[%emt 0:00:13]} 21. Rc2 {[%emt 0:00:36]} Bb7 {[%emt 0:00:45]} 22. Kh2 {[%emt 0:01:12]} Qd6 {[%emt 0:03:24]} 23. Ne1 {[%emt 0:02:14]} Qb6 {[%emt 0:01:52]} 24. Nd3 {[%emt 0:02:59]} Qd6 {[%emt 0:00:11]} 25. Qc1 {[%emt 0:01:52]} Re7 {[%emt 0:03:17]} 26. Qf4 {[%emt 0:01:30]} Qd7 {[%emt 0:02:22]} 27. h4 {[%emt 0:04:19]} h6 {[%emt 0:00:05]} 28. Bh3 {[%emt 0:00:48]} Qe8 {[%emt 0:00:26]} 29. Rfc1 {[%emt 0:00:43]} Nd6 {[%emt 0:02:06]} 30. e3 {[%emt 0:01:06]} Re4 {[%emt 0:00:24]} 31. Qf3 {[%emt 0:02:01]} d4 {[%emt 0:00:33]} 32. Nc5 {[%emt 0:01:48]} Rxe3 {[%emt 0:02:24]} 33. Qd1 {[%emt 0:02:28]} Re7 {[%emt 0:03:51]} 34. Nxb7 {[%emt 0:04:48]} Nxb7 {[%emt 0:00:06]} 35. Rc8 {[%emt 0:01:21]} Nd6 {[%emt 0:02:47]} 36. Rxd8 {[%emt 0:00:35]} Qxd8 {[%emt 0:00:02]} 37. Qxd4 {[%emt 0:00:15]} Re4 {[%emt 0:01:27]} 38. Qd5 {[%emt 0:04:03]} Qe7 {[%emt 0:00:12]} 39. Qa8+ {[%emt 0:00:38]} Kh7 {[%emt 0:00:11]} 40. Qxa6 {[%emt 0:00:00]} Qe5 {[%emt 0:00:16]} 41. Qd3 {[%emt 0:05:05]} g6 {[%emt 0:01:56]} 42. Kg1 {[%emt 0:02:21]} Re2 $18 {[%emt 0:11:55]} 43. Rc2 {[%emt 0:01:43]} Re1+ {[%emt 0:02:35]} 44. Kh2 {[%emt 0:03:42]} Nb5 {[%emt 0:01:11]} 45. Bg2 {[%emt 0:04:46]} Nd4 {[%emt 0:00:46]} 46. Rd2 {[%emt 0:01:08]} Nf5 {[%emt 0:02:19]} 47. h5 {[%emt 0:04:36]} Nh4 {[%emt 0:10:07]} 48. hxg6+ {[%emt 0:03:45]} Nxg6 {[%emt 0:01:05]} 49. Qf3 {[%emt 0:03:55]} Nh4 {[%emt 0:00:16]} 50. Qxf7+ {[%emt 0:00:24]} 1-0

[Event "ESTCC U65 2018"]
[Site "Walbrzych"]
[Date "2018.04.19"]
[Round "6"]
[White "Rantanen, Veikko"]
[Black "Scrimgour, Alan"]
[Result "1/2-1/2"]
[ECO "A20"]
[WhiteElo "2007"]
[BlackElo "2083"]
[Annotator "NA"]
[PlyCount "95"]
[EventDate "2018.??.??"]
[EventCountry "POL"]
[SourceTitle "playchess.com"]
[Source "ChessBase"]
[SourceQuality "1"]
[WhiteTeam "Finland"]
[BlackTeam "Scotland"]
[WhiteTeamCountry "FIN"]
[BlackTeamCountry "SCO"]
[TimeControl "40/5400+30:1800+30"]

1. c4 {[%emt 0:00:00]} e5 {[%emt 0:00:05]} 2. g3 {[%emt 0:00:00]} Nf6 {[%emt 0:00:07]} 3. Bg2 {[%emt 0:00:10]} c6 {[%emt 0:00:15]} 4. Nf3 {[%emt 0:01:53]} e4 {[%emt 0:00:22] A20: English Opening: 1...e5} 5. Ng5 {[%emt 0:00:28]} (5. Nd4 Qb6 6. e3 d5 7. Nc3 Bg4 8. f3 exf3 9. Bxf3 Bxf3 10. Qxf3 dxc4 11. b3 cxb3 12. O-O Nbd7 13. axb3 {0-1 (34) Aronian,L (2799)-Caruana,F (2807) Saint Louis 2017}) 5... d5 {[%emt 0:01:09]} 6. O-O {[%emt 0:00:38]} h6 {[%emt 0:09:19]} 7. Nh3 {[%emt 0:00:06]} Bf5 {[%emt 0:01:47]} 8. cxd5 {[%emt 0:04:54]} cxd5 {[%emt 0:03:00]} 9. d3 {[%emt 0:04:47]} exd3 $146 {[%emt 0:09:33]} ({Predecessor:} 9... Qd7 10. Nf4 g5 11. dxe4 Bxe4 12. Qd4 {0-1 (20) Bielmeier,L (2005)-Huch,R (2286) Bayern 2010}) 10. exd3 {[%emt 0:00:18]} Be7 {[%emt 0:00:25]} 11. Nf4 {[%emt 0:03:54]} g5 {[%emt 0:09:22]} 12. Ne2 {[%emt 0:00:30]} Nc6 {[%emt 0:01:35]} 13. Be3 {[%emt 0:07:34]} Qd7 {[%emt 0:09:04]} 14. Nd4 {[%emt 0:04:38]} Bh3 {[%emt 0:02:48]} 15. Nc3 {[%emt 0:02:54]} Bxg2 {[%emt 0:01:05]} 16. Kxg2 {[%emt 0:00:07]} Ng4 {[%emt 0:03:32]} 17. Nxc6 {[%emt 0:09:10]} Nxe3+ {[%emt 0:00:36]} 18. fxe3 {[%emt 0:00:11]} bxc6 {[%emt 0:00:12]} 19. Rc1 {[%emt 0:02:42]} Rb8 {[%emt 0:05:27]} 20. b3 {[%emt 0:02:13]} O-O {[%emt 0:04:04]} 21. Qf3 {[%emt 0:03:07]} f5 {[%emt 0:02:02]} 22. Ne2 {[%emt 0:03:22]} Ba3 {[%emt 0:02:21]} 23. Rc2 {[%emt 0:00:08]} Rf6 {[%emt 0:02:47]} 24. Nd4 {[%emt 0:11:43]} Rbf8 {[%emt 0:00:39]} 25. Rcf2 {[%emt 0:00:20]} Bc5 {[%emt 0:04:32]} 26. Nc2 {[%emt 0:01:21]} Qe6 {[%emt 0:01:38]} 27. d4 {[%emt 0:03:29]} Bd6 {[%emt 0:02:07]} 28. Ne1 {[%emt 0:02:44]} g4 {[%emt 0:04:00]} 29. Qd1 {[%emt 0:00:13]} Qe4+ {[%emt 0:00:40]} 30. Kg1 {[%emt 0:00:22]} Qxe3 {[%emt 0:00:43]} 31. Qd3 {[%emt 0:00:17]} Qe4 {[%emt 0:04:57]} 32. Re2 {[%emt 0:00:54]} Qxd3 {[%emt 0:00:25]} 33. Nxd3 {[%emt 0:00:07]} Kg7 {[%emt 0:01:27]} 34. Rc2 {[%emt 0:02:33]} Rc8 {[%emt 0:00:14]} 35. Rfc1 {[%emt 0:01:18]} Ba3 {[%emt 0:00:21]} 36. Re1 {[%emt 0:00:20]} a5 {[%emt 0:01:32]} 37. Ne5 {[%emt 0:02:05]} Re6 {[%emt 0:00:48]} 38. Rf1 {[%emt 0:00:51]} Rf6 {[%emt 0:05:12]} 39. Rcf2 {[%emt 0:03:09]} c5 {[%emt 0:02:30]} 40. Nxg4 {[%emt 0:00:00]} Rff8 {[%emt 0:00:47]} 41. Rxf5 {[%emt 0:01:30]} Rxf5 $14 {[%emt 0:01:55]} 42. Rxf5 {[%emt 0:00:18]} c4 {[%emt 0:01:17]} 43. bxc4 {[%emt 0:02:24]} dxc4 {[%emt 0:01:19]} 44. Rxa5 {[%emt 0:01:01]} Bb2 {[%emt 0:01:38]} 45. Kf1 {[%emt 0:07:33]} c3 {[%emt 0:03:36]} 46. Ne3 {[%emt 0:00:40]} c2 {[%emt 0:00:33]} 47. Nxc2 Rxc2 48. Re5 1/2-1/2

[Event "ESTCC U65 2018"]
[Site "Walbrzych"]
[Date "2018.04.19"]
[Round "6"]
[White "Wademark, Helge"]
[Black "Kradolfer, Georg"]
[Result "1/2-1/2"]
[ECO "B13"]
[WhiteElo "2005"]
[BlackElo "2084"]
[Annotator "NA"]
[PlyCount "34"]
[EventDate "2018.??.??"]
[EventCountry "POL"]
[SourceTitle "playchess.com"]
[Source "ChessBase"]
[SourceQuality "1"]
[WhiteTeam "Sweden"]
[BlackTeam "Switzerland"]
[WhiteTeamCountry "SWE"]
[BlackTeamCountry "SUI"]
[TimeControl "40/5400+30:1800+30"]

1. e4 {[%emt 0:00:00]} c6 {[%emt 0:00:15]} 2. d4 {[%emt 0:00:00]} d5 {[%emt 0:00:04]} 3. exd5 {[%emt 0:00:29]} cxd5 {[%emt 0:00:07]} 4. Bd3 {[%emt 0:00:14]} Nf6 {[%emt 0:01:00]} 5. Nf3 {[%emt 0:00:12]} Bg4 {[%emt 0:01:34]} 6. c3 {[%emt 0:00:52]} Qc7 {[%emt 0:09:59]} 7. Nbd2 {[%emt 0:06:14]} Nbd7 {[%emt 0:06:05]} 8. Qa4 {[%emt 0:02:27]} Bxf3 {[%emt 0:20:08]} 9. Nxf3 {[%emt 0:01:33]} e6 {[%emt 0:00:41]} 10. Bg5 {[%emt 0:04:16]} Bd6 {[%emt 0:13:28]} 11. Bxf6 {[%emt 0:11:12]} gxf6 {[%emt 0:00:07]} 12. g3 {[%emt 0:06:15]} a6 {[%emt 0:07:44]} 13. Nh4 {[%emt 0:06:38]} O-O-O {[%emt 0:01:55]} 14. O-O-O {[%emt 0:00:58]} f5 {[%emt 0:03:10]} 15. Ng2 {[%emt 0:01:56]} Kb8 {[%emt 0:00:38]} 16. Kb1 {[%emt 0:04:15]} Rc8 {[%emt 0:05:08]} 17. Rc1 {[%emt 0:02:37]} Nb6 {[%emt 0:00:48]} 1/2-1/2

[Event "ESTCC U65 2018"]
[Site "Walbrzych"]
[Date "2018.04.19"]
[Round "6"]
[White "Ranki, Martti"]
[Black "Marks, Ian A"]
[Result "1-0"]
[ECO "A41"]
[WhiteElo "1942"]
[BlackElo "1895"]
[Annotator "NA"]
[PlyCount "69"]
[EventDate "2018.??.??"]
[EventCountry "POL"]
[SourceTitle "playchess.com"]
[Source "ChessBase"]
[SourceQuality "1"]
[WhiteTeam "Finland"]
[BlackTeam "Scotland"]
[WhiteTeamCountry "FIN"]
[BlackTeamCountry "SCO"]
[TimeControl "40/5400+30:1800+30"]

1. d4 {[%emt 0:00:00]} d6 {[%emt 0:00:10]} 2. c4 {[%emt 0:01:06]} e5 {[%emt 0:00:07]} 3. e4 {[%emt 0:01:48]} exd4 {[%emt 0:01:14]} 4. Qxd4 {[%emt 0:00:27]} Nc6 {[%emt 0:00:14]} 5. Qd1 {[%emt 0:00:11]} g6 {[%emt 0:02:10]} 6. Nc3 {[%emt 0:00:55]} Bg7 {[%emt 0:00:52]} 7. Nf3 {[%emt 0:00:44]} Nf6 {[%emt 0:07:02]} 8. Bd3 {[%emt 0:02:17]} O-O {[%emt 0:01:41]} 9. h3 {[%emt 0:01:22]} Re8 {[%emt 0:01:24]} 10. O-O {[%emt 0:00:20]} h6 {[%emt 0:03:32]} 11. Be3 {[%emt 0:05:56]} Nb4 {[%emt 0:03:28]} 12. Bb1 {[%emt 0:02:38]} Be6 {[%emt 0:06:26]} 13. Qe2 {[%emt 0:12:33]} Nc6 {[%emt 0:04:46]} 14. Rd1 {[%emt 0:01:16]} Qe7 {[%emt 0:05:06]} 15. Bc2 {[%emt 0:03:27]} Ne5 {[%emt 0:04:35]} 16. Bb3 {[%emt 0:04:30]} Nxf3+ {[%emt 0:01:12]} 17. Qxf3 {[%emt 0:00:36]} Nd7 {[%emt 0:06:12]} 18. Qe2 {[%emt 0:08:42]} Nc5 {[%emt 0:04:43]} 19. Bc2 {[%emt 0:02:29]} Rad8 {[%emt 0:05:04]} 20. Qd2 {[%emt 0:04:12]} Kh7 {[%emt 0:01:52]} 21. Bd4 {[%emt 0:03:07]} c6 {[%emt 0:03:59]} 22. a3 {[%emt 0:05:01]} a5 {[%emt 0:03:09]} 23. Rab1 {[%emt 0:05:56]} Bf8 {[%emt 0:05:19]} 24. Qf4 {[%emt 0:04:53]} Bg7 {[%emt 0:01:40]} 25. Qe3 {[%emt 0:03:19]} Bxc4 {[%emt 0:03:43]} 26. Bxg7 {[%emt 0:00:30]} Kxg7 {[%emt 0:06:40]} 27. Qd4+ {[%emt 0:00:12]} Kg8 {[%emt 0:01:40]} 28. Qxc4 {[%emt 0:00:17]} b5 {[%emt 0:00:45]} 29. Qd4 {[%emt 0:01:53]} Ne6 {[%emt 0:01:20]} 30. Qe3 {[%emt 0:01:41]} Kg7 {[%emt 0:02:04]} 31. Ne2 {[%emt 0:01:41]} c5 {[%emt 0:00:50]} 32. Qg3 {[%emt 0:04:28]} Ng5 {[%emt 0:01:28]} 33. Nf4 {[%emt 0:02:08]} Nxe4 {[%emt 0:02:21]} 34. Nh5+ {[%emt 0:00:32]} Kf8 {[%emt 0:00:56]} 35. Bxe4 {[%emt 0:00:08]} 1-0

[Event "ESTCC U65 2018"]
[Site "Walbrzych"]
[Date "2018.04.19"]
[Round "6"]
[White "Mortensen, Steen Juul"]
[Black "Vinke, Dietmar"]
[Result "1/2-1/2"]
[ECO "E91"]
[WhiteElo "1940"]
[BlackElo "2170"]
[Annotator "NA"]
[PlyCount "132"]
[EventDate "2018.??.??"]
[EventCountry "POL"]
[SourceTitle "playchess.com"]
[Source "ChessBase"]
[SourceQuality "1"]
[WhiteTeam "Denmark"]
[BlackTeam "Finland"]
[WhiteTeamCountry "DEN"]
[BlackTeamCountry "FIN"]
[TimeControl "40/5400+30:1800+30"]

1. d4 {[%emt 0:00:00]} Nf6 {[%emt 0:00:17]} 2. c4 {[%emt 0:00:00]} g6 {[%emt 0:00:06]} 3. Nc3 {[%emt 0:00:00]} Bg7 {[%emt 0:00:04]} 4. e4 {[%emt 0:00:00]} d6 {[%emt 0:00:03]} 5. Nf3 {[%emt 0:00:05]} O-O {[%emt 0:00:09]} 6. Be2 {[%emt 0:00:14]} Na6 {[%emt 0:00:14]} 7. O-O {[%emt 0:00:58]} e5 {[%emt 0:00:08]} 8. dxe5 {[%emt 0:02:02]} dxe5 {[%emt 0:00:16]} 9. Be3 {[%emt 0:01:07]} Ng4 {[%emt 0:05:59]} 10. Bg5 {[%emt 0:03:43]} f6 {[%emt 0:00:22]} 11. Bh4 {[%emt 0:00:16]} c6 {[%emt 0:03:23]} 12. Qxd8 {[%emt 0:09:11]} Rxd8 {[%emt 0:00:40]} 13. Rfd1 {[%emt 0:00:11] E94: King's Indian: Classical: 6 Be2 e5 7 0-0: Various Black 7th moves} Be6 {[%emt 0:00:59] [#]} 14. b3 $146 {[%emt 0:09:03]} ({Predecessor:} 14. a3 Nh6 15. b4 Nf7 16. Nd2 Rd7 17. Nb3 Rad8 18. f3 b6 19. Kf1 Nc7 20. Rxd7 Rxd7 {½-½ (60) Oleksienko,M (2636)-Vypkhaniuk,I (2302) Lvov 2017}) 14... h5 {[%emt 0:12:57]} 15. h3 {[%emt 0:04:59]} Nh6 {[%emt 0:00:17]} 16. Rxd8+ {[%emt 0:03:19]} Rxd8 {[%emt 0:00:09]} 17. Rd1 {[%emt 0:00:38]} Rxd1+ {[%emt 0:01:09]} 18. Bxd1 {[%emt 0:00:02]} g5 {[%emt 0:01:43]} 19. Bg3 {[%emt 0:00:02]} h4 {[%emt 0:00:11]} 20. Bh2 {[%emt 0:00:02]} Bf8 {[%emt 0:00:08]} 21. Bc2 {[%emt 0:02:48]} Kf7 {[%emt 0:21:17]} 22. Kf1 {[%emt 0:02:18]} Ke8 {[%emt 0:00:55]} 23. Ng1 {[%emt 0:13:36]} Bb4 {[%emt 0:11:46]} 24. Nge2 {[%emt 0:02:08]} Nf7 {[%emt 0:00:21]} 25. f3 {[%emt 0:05:18]} Nd6 {[%emt 0:10:42]} 26. Bg1 {[%emt 0:03:21]} Bc5 {[%emt 0:00:10]} 27. Bxc5 {[%emt 0:00:51]} Nxc5 {[%emt 0:00:05]} 28. Kf2 {[%emt 0:04:35]} a5 {[%emt 0:00:49]} 29. Nc1 {[%emt 0:10:53]} b6 {[%emt 0:01:53]} 30. Nd3 {[%emt 0:00:53]} Ndb7 {[%emt 0:00:12]} 31. Ke2 {[%emt 0:02:05]} Kd7 {[%emt 0:02:13]} 32. Nc1 {[%emt 0:02:15]} Kc7 {[%emt 0:01:44]} 33. Kd2 {[%emt 0:01:02]} Bf7 {[%emt 0:04:40]} 34. Bd3 {[%emt 0:09:45]} Ne6 {[%emt 0:06:31]} 35. Bf1 {[%emt 0:00:32]} Nbc5 {[%emt 0:06:41]} 36. Nd3 {[%emt 0:03:18]} Nxd3 {[%emt 0:03:56]} 37. Kxd3 {[%emt 0:01:09]} Be8 {[%emt 0:00:52]} 38. Kd2 {[%emt 0:02:18]} Nd4 {[%emt 0:01:15]} 39. Ne2 {[%emt 0:00:33]} Kd6 $15 {[%emt 0:00:30]} 40. Nc1 {[%emt 0:00:00]} b5 {[%emt 0:01:16]} 41. Kc3 {[%emt 0:09:19]} b4+ {[%emt 0:18:20]} 42. Kd2 {[%emt 0:02:38]} Ne6 {[%emt 0:04:53]} 43. Nd3 {[%emt 0:01:45]} Bg6 {[%emt 0:00:12]} 44. Nf2 {[%emt 0:01:58]} Nf4 {[%emt 0:02:14]} 45. Ke3 {[%emt 0:03:08]} c5 {[%emt 0:04:16]} 46. Kd2 {[%emt 0:03:15]} Be8 {[%emt 0:00:58]} 47. Ng4 {[%emt 0:01:13]} Ke6 {[%emt 0:00:27]} 48. Ne3 {[%emt 0:00:17]} a4 {[%emt 0:00:46]} 49. Kc2 {[%emt 0:03:25]} a3 {[%emt 0:00:14]} 50. Kd2 {[%emt 0:01:30]} Bg6 {[%emt 0:01:37]} 51. Bd3 {[%emt 0:01:48]} Bh7 {[%emt 0:00:52]} 52. Bc2 {[%emt 0:01:44]} Kf7 {[%emt 0:00:31]} 53. Bd3 {[%emt 0:00:36]} Ne6 {[%emt 0:00:09]} 54. Bc2 {[%emt 0:01:32]} Nd4 {[%emt 0:00:20]} 55. Bd3 {[%emt 0:00:08]} Ke6 {[%emt 0:00:38]} 56. Ke1 {[%emt 0:01:26]} Kd6 {[%emt 0:01:54]} 57. Kd2 {[%emt 0:00:21]} Ne6 {[%emt 0:00:17]} 58. Nd5 {[%emt 0:02:32]} Nd4 {[%emt 0:00:01]} 59. Nxf6 {[%emt 0:00:30]} Nxb3+ {[%emt 0:00:04]} 60. Kc2 {[%emt 0:01:06]} Nd4+ {[%emt 0:00:05]} 61. Kb1 {[%emt 0:00:40]} Bg6 {[%emt 0:00:02]} 62. Ng4 {[%emt 0:00:16]} Be8 {[%emt 0:00:35]} 63. Ne3 {[%emt 0:00:08]} Bd7 {[%emt 0:00:13]} 64. Kc1 {[%emt 0:00:20]} Nc6 {[%emt 0:01:33]} 65. Kb1 {[%emt 0:01:32]} Nd4 {[%emt 0:00:34]} 66. Kc1 {[%emt 0:00:02]} b3 1/2-1/2

[Event "ESTCC U65 2018"]
[Site "Walbrzych"]
[Date "2018.04.19"]
[Round "6"]
[White "Gustavsson, Bo"]
[Black "Auvinen, Esa"]
[Result "0-1"]
[ECO "C54"]
[WhiteElo "1915"]
[BlackElo "1888"]
[Annotator "NA"]
[PlyCount "58"]
[EventDate "2018.??.??"]
[EventCountry "POL"]
[SourceTitle "playchess.com"]
[Source "ChessBase"]
[SourceQuality "1"]
[WhiteTeam "Sweden"]
[BlackTeam "Finland"]
[WhiteTeamCountry "SWE"]
[BlackTeamCountry "FIN"]
[TimeControl "40/5400+30:1800+30"]

1. e4 {[%emt 0:00:00]} e5 {[%emt 0:03:16]} 2. Nf3 {[%emt 0:00:00]} Nc6 {[%emt 0:00:05]} 3. Bc4 {[%emt 0:00:03]} Bc5 {[%emt 0:00:57]} 4. c3 {[%emt 0:01:34]} Nf6 {[%emt 0:00:43]} 5. d4 {[%emt 0:03:55]} exd4 {[%emt 0:00:44]} 6. e5 {[%emt 0:00:19]} d5 {[%emt 0:02:56]} 7. exf6 {[%emt 0:16:42]} dxc4 {[%emt 0:00:19]} 8. fxg7 {[%emt 0:06:27]} Rg8 {[%emt 0:08:45]} 9. cxd4 {[%emt 0:03:47]} Nxd4 {[%emt 0:01:13]} 10. Be3 {[%emt 0:01:43]} Nxf3+ {[%emt 0:04:11]} 11. Qxf3 {[%emt 0:01:44]} Bxe3 {[%emt 0:00:44]} 12. fxe3 {[%emt 0:12:07]} Rxg7 {[%emt 0:01:38]} 13. Nd2 {[%emt 0:05:16]} c6 {[%emt 0:05:04]} 14. Ne4 {[%emt 0:10:24]} Be6 {[%emt 0:04:31]} 15. Rd1 {[%emt 0:00:25]} Qa5+ {[%emt 0:02:06]} 16. Kf2 {[%emt 0:02:29]} Qxa2 {[%emt 0:01:31]} 17. Qf6 {[%emt 0:03:26]} Rg8 {[%emt 0:09:26]} 18. Rhf1 {[%emt 0:04:45]} Qb3 {[%emt 0:05:40]} 19. Rd2 {[%emt 0:04:36]} c3 {[%emt 0:24:45]} 20. bxc3 {[%emt 0:05:53]} Bd5 {[%emt 0:00:41]} 21. Kg1 {[%emt 0:02:20]} Bxe4 {[%emt 0:01:30]} 22. Rfd1 {[%emt 0:01:43]} Rxg2+ {[%emt 0:01:53]} 23. Rxg2 {[%emt 0:00:47]} Qxd1+ {[%emt 0:00:10]} 24. Kf2 {[%emt 0:00:41]} Qd2+ {[%emt 0:00:55]} 25. Kf1 {[%emt 0:00:31]} Qxg2+ {[%emt 0:00:24]} 26. Ke1 {[%emt 0:00:00]} Rd8 {[%emt 0:02:46]} 27. Qe5+ {[%emt 0:01:19]} Kd7 {[%emt 0:00:22]} 28. Qf6 {[%emt 0:01:08]} Kc8 {[%emt 0:00:52]} 29. Qxf7 {[%emt 0:00:13]} Bd5 0-1

[Event "ESTCC U65 2018"]
[Site "Walbrzych"]
[Date "2018.04.19"]
[Round "6"]
[White "Vehkalahti, Veli"]
[Black "Just, Joachim"]
[Result "0-1"]
[ECO "D02"]
[WhiteElo "1880"]
[BlackElo "1928"]
[Annotator "NA"]
[PlyCount "116"]
[EventDate "2018.??.??"]
[EventCountry "POL"]
[SourceTitle "playchess.com"]
[Source "ChessBase"]
[SourceQuality "1"]
[WhiteTeam "Finland"]
[BlackTeam "Germany"]
[WhiteTeamCountry "FIN"]
[BlackTeamCountry "GER"]
[TimeControl "40/5400+30:1800+30"]

1. d4 {[%emt 0:01:48]} d5 {[%emt 0:00:11]} 2. Nf3 {[%emt 0:00:18]} Nf6 {[%emt 0:00:18]} 3. Bf4 {[%emt 0:01:23]} g6 {[%emt 0:00:56]} 4. e3 {[%emt 0:01:16]} Bg7 {[%emt 0:00:22]} 5. Bd3 {[%emt 0:00:18]} O-O {[%emt 0:00:37]} 6. Nbd2 {[%emt 0:00:18]} c6 {[%emt 0:01:00]} 7. O-O {[%emt 0:00:26]} Nbd7 {[%emt 0:01:09] D02: 1 d4 d5 2 Nf3 sidelines, including 2...Nf6 3 g3 and 2...Nf6 3 Bf4} 8. h3 {[%emt 0:00:47]} Re8 {[%emt 0:01:03]} (8... b6 9. c3 Bb7 10. Qe2 a5 11. a4 Qc8 12. Rac1 c5 13. Bb5 Bc6 14. c4 Qb7 15. Ne5 Nxe5 16. Bxe5 cxd4 17. exd4 dxc4 18. Bxc6 Qxc6 19. Rxc4 {½-½ (50) Hoang,T (2495)-Ehlvest,J (2578) Jakarta 2013}) 9. c4 {[%emt 0:01:26]} dxc4 {[%emt 0:02:29]} 10. Bxc4 {[%emt 0:03:26]} Nd5 {[%emt 0:01:26]} 11. Bg3 {[%emt 0:03:09]} N7b6 $146 {[%emt 0:03:29]} ({Predecessor:} 11... Qb6 12. Bb3 e5 13. Nxe5 Nxe5 14. Bxe5 Bxe5 {½-½ (23) Holth,T-Groenli,F (1292) Sarpsborg 2002}) 12. Bb3 {[%emt 0:00:46]} a5 {[%emt 0:02:24]} 13. a4 {[%emt 0:00:23]} h6 {[%emt 0:04:51]} 14. Rc1 {[%emt 0:08:00]} Nb4 {[%emt 0:02:21]} 15. Ne4 {[%emt 0:09:44]} N6d5 {[%emt 0:04:17]} 16. Bxd5 Qxd5 17. Nc3 Qh5 {[%emt 0:12:34]} 18. Ne5 {[%emt 0:21:20]} Qxd1 {[%emt 0:00:34]} 19. Rfxd1 {[%emt 0:00:15]} Be6 {[%emt 0:00:21]} 20. Rd2 {[%emt 0:04:10]} Rad8 {[%emt 0:04:00]} 21. Nf3 {[%emt 0:05:03]} Rc8 {[%emt 0:05:55]} 22. Ne4 {[%emt 0:07:47]} Ra8 {[%emt 0:06:08]} 23. Nc5 {[%emt 0:02:26]} Bc8 {[%emt 0:00:10]} 24. Bc7 {[%emt 0:00:46]} Nd5 {[%emt 0:01:49]} 25. Be5 {[%emt 0:03:08]} f6 {[%emt 0:00:41]} 26. Bg3 {[%emt 0:00:22]} e5 {[%emt 0:00:56]} 27. e4 {[%emt 0:02:40]} Nb4 {[%emt 0:03:00]} 28. dxe5 {[%emt 0:01:51]} fxe5 {[%emt 0:00:32]} 29. Rd6 {[%emt 0:01:22]} Kh7 {[%emt 0:02:53]} 30. Nd7 {[%emt 0:03:33]} b5 {[%emt 0:09:04]} 31. b3 {[%emt 0:01:17]} Ra7 {[%emt 0:01:17]} 32. Ndxe5 {[%emt 0:00:59]} Be6 {[%emt 0:02:48]} 33. Nd4 {[%emt 0:02:36]} Bxe5 {[%emt 0:02:12]} 34. Nxe6 {[%emt 0:00:15]} Bxd6 {[%emt 0:00:27]} 35. Bxd6 {[%emt 0:00:50]} Rxe6 {[%emt 0:00:10]} 36. e5 {[%emt 0:00:28]} bxa4 {[%emt 0:00:45]} 37. bxa4 {[%emt 0:00:01]} Rd7 {[%emt 0:00:18]} 38. Rc5 {[%emt 0:00:18]} Rexd6 {[%emt 0:02:05]} 39. exd6 {[%emt 0:00:18]} Rxd6 {[%emt 0:00:10]} 40. Rxa5 {[%emt 0:00:03]} Rd1+ {[%emt 0:30:37]} 41. Kh2 {[%emt 0:00:02]} Ra1 {[%emt 0:00:00]} 42. Ra7+ {[%emt 0:00:16]} Kg8 {[%emt 0:00:00]} 43. a5 {[%emt 0:00:47]} Ra3 {[%emt 0:00:00]} 44. f3 {[%emt 0:02:53]} c5 {[%emt 0:00:00]} 45. Kg3 {[%emt 0:01:09]} c4 {[%emt 0:00:00]} 46. Rb7 {[%emt 0:01:12]} Nc6 {[%emt 0:00:00]} 47. Rb6 {[%emt 0:00:29]} Nxa5 {[%emt 0:00:00]} 48. Rxg6+ {[%emt 0:00:32]} Kh7 {[%emt 0:00:00]} 49. Ra6 {[%emt 0:00:36]} c3 {[%emt 0:00:00]} 50. Ra7+ {[%emt 0:00:13]} Kg6 {[%emt 0:00:00]} 51. Rc7 {[%emt 0:05:36]} Kf6 {[%emt 0:00:00]} 52. Rc8 {[%emt 0:05:02]} Ke6 {[%emt 0:00:00]} 53. Re8+ {[%emt 0:04:55]} Kd7 $19 {[%emt 0:00:00]} 54. Re2 {[%emt 0:00:19]} Nc4 {[%emt 0:00:00]} 55. Re4 {[%emt 0:03:30]} Ra4 {[%emt 0:00:00]} 56. Re1 {[%emt 0:01:36]} Ra2 {[%emt 0:00:00]} 57. Rc1 {[%emt 0:00:28]} c2 {[%emt 0:00:00]} 58. Kf2 {[%emt 0:00:17]} Na5 {[%emt 0:00:00]} 0-1